[Event "Titled Tuesday Blitz July 11 Late 2023"]
[White "Shuvalova, Polina"]
[Black "Yelisieiev, Yevhenii"]
[WhiteFideId "24171760"]
[BlackFideId "14139642"]
[WhiteElo "2666"]
[BlackElo "2545"]
[Result "1-0"]
[Round "11"]
[TimeControl "180+2"]
[Date "2023.07.11"]
[WhiteClock "0:00:03"]
[BlackClock "0:00:00"]
[Board "33"]

1. e4 {[%clk 0:03:00]}  d6 {[%clk 0:03:00]} 2. d4 {[%clk 0:03:00]}  Nf6 {[%clk 0:03:00]} 3. Nc3 {[%clk 0:02:59]}  e5 {[%clk 0:03:01]} 4. Nf3 {[%clk 0:02:56]}  Nbd7 {[%clk 0:03:01]} 5. Bc4 {[%clk 0:02:57]}  Be7 {[%clk 0:03:01]} 6. O-O {[%clk 0:02:57]}  O-O {[%clk 0:03:02]} 7. Re1 {[%clk 0:02:58]}  c6 {[%clk 0:03:02]} 8. a4 {[%clk 0:02:58]}  a5 {[%clk 0:03:03]} 9. h3 {[%clk 0:02:58]}  Nb6 {[%clk 0:03:03]} 10. Bf1 {[%clk 0:02:55]}  exd4 {[%clk 0:03:03]} 11. Nxd4 {[%clk 0:02:54]}  d5 {[%clk 0:03:03]} 12. e5 {[%clk 0:02:51]}  Ne8 {[%clk 0:03:03]} 13. Bf4 {[%clk 0:02:46]}  g6 {[%clk 0:02:55]} 14. Bh6 {[%clk 0:02:37]}  Ng7 {[%clk 0:02:54]} 15. Qd2 {[%clk 0:02:37]}  Re8 {[%clk 0:02:51]} 16. Rad1 {[%clk 0:02:33]}  Nd7 {[%clk 0:02:18]} 17. g4 {[%clk 0:02:15]}  Nc5 {[%clk 0:02:16]} 18. Bg2 {[%clk 0:02:14]}  Nge6 {[%clk 0:02:11]} 19. Nxe6 {[%clk 0:01:56]}  Nxe6 {[%clk 0:02:10]} 20. f4 {[%clk 0:01:49]}  Ng7 {[%clk 0:01:22]} 21. Ne2 {[%clk 0:01:41]}  Qb6+ {[%clk 0:01:17]} 22. Kh1 {[%clk 0:01:39]}  Qxb2 {[%clk 0:01:14]} 23. Rf1 {[%clk 0:01:19]}  Bb4 {[%clk 0:00:57]} 24. Qd3 {[%clk 0:01:17]}  b6 {[%clk 0:00:54]} 25. Rb1 {[%clk 0:00:49]}  Qa3 {[%clk 0:00:54]} 26. Rb3 {[%clk 0:00:33]}  Qxa4 {[%clk 0:00:49]} 27. Qg3 {[%clk 0:00:32]}  Qa2 {[%clk 0:00:30]} 28. Nd4 {[%clk 0:00:28]}  Bc5 {[%clk 0:00:24]} 29. Nxc6 {[%clk 0:00:24]}  Qxc2 {[%clk 0:00:22]} 30. Bxd5 {[%clk 0:00:23]}  Bb7 {[%clk 0:00:19]} 31. Rc3 {[%clk 0:00:22]}  Qd2 {[%clk 0:00:17]} 32. Bg2 {[%clk 0:00:10]}  Rac8 {[%clk 0:00:12]} 33. Rd3 {[%clk 0:00:07]}  Qa2 {[%clk 0:00:10]} 34. Bxg7 {[%clk 0:00:03]}  Kxg7 {[%clk 0:00:10]} 35. Na7 {[%clk 0:00:02]}  Bxg2+ {[%clk 0:00:09]} 36. Qxg2 {[%clk 0:00:03]}  Qxg2+ {[%clk 0:00:09]} 37. Kxg2 {[%clk 0:00:04]}  Ra8 {[%clk 0:00:09]} 38. Nb5 {[%clk 0:00:04]}  Red8 {[%clk 0:00:08]} 39. Rxd8 {[%clk 0:00:04]}  Rxd8 {[%clk 0:00:09]} 40. f5 {[%clk 0:00:05]}  gxf5 {[%clk 0:00:09]} 41. gxf5 {[%clk 0:00:06]}  Rd2+ {[%clk 0:00:09]} 42. Kf3 {[%clk 0:00:06]}  Rd3+ {[%clk 0:00:09]} 43. Kg4 {[%clk 0:00:05]}  h5+ {[%clk 0:00:08]} 44. Kxh5 {[%clk 0:00:05]}  Rxh3+ {[%clk 0:00:09]} 45. Kg4 {[%clk 0:00:06]}  Rb3 {[%clk 0:00:09]} 46. Nc7 {[%clk 0:00:06]}  Rb4+ {[%clk 0:00:06]} 47. Kh5 {[%clk 0:00:05]}  Rb2 {[%clk 0:00:04]} 48. f6+ {[%clk 0:00:05]}  Kh7 {[%clk 0:00:02]} 49. Kg5 {[%clk 0:00:04]}  Be3+ {[%clk 0:00:02]} 50. Kf5 {[%clk 0:00:05]}  Rf2+ {[%clk 0:00:03]} 51. Rxf2 {[%clk 0:00:05]}  Bxf2 {[%clk 0:00:04]} 52. e6 {[%clk 0:00:04]}  fxe6+ {[%clk 0:00:04]} 53. Kxe6 {[%clk 0:00:05]}  Bc5 {[%clk 0:00:02]} 54. Nd5 {[%clk 0:00:04]}  a4 {[%clk 0:00:00]} 55. Ne7 {[%clk 0:00:03]} 1-0


[Site "https://www.chess.com"]

[Event "Titled Tuesday Blitz July 11 Late 2023"]
[White "Ehlvest, Jaan"]
[Black "Zhang, Derek"]
[WhiteFideId "4500016"]
[BlackFideId "2087871"]
[WhiteElo "2627"]
[BlackElo "2525"]
[Result "1-0"]
[Round "11"]
[TimeControl "180+2"]
[Date "2023.07.11"]
[WhiteClock "0:00:07"]
[BlackClock "0:00:00"]
[Board "37"]

1. e4 {[%clk 0:02:59]}  e6 {[%clk 0:02:59]} 2. d4 {[%clk 0:02:57]}  d5 {[%clk 0:03:00]} 3. exd5 {[%clk 0:02:57]}  exd5 {[%clk 0:03:00]} 4. Nf3 {[%clk 0:02:55]}  Bd6 {[%clk 0:03:00]} 5. Bd3 {[%clk 0:02:53]}  Ne7 {[%clk 0:03:00]} 6. O-O {[%clk 0:02:52]}  O-O {[%clk 0:03:00]} 7. Bg5 {[%clk 0:02:50]}  f6 {[%clk 0:03:00]} 8. Bh4 {[%clk 0:02:50]}  Bf5 {[%clk 0:03:01]} 9. Re1 {[%clk 0:02:48]}  Nbc6 {[%clk 0:03:00]} 10. c3 {[%clk 0:02:46]}  Qd7 {[%clk 0:03:01]} 11. a4 {[%clk 0:02:42]}  Rae8 {[%clk 0:02:54]} 12. Bf1 {[%clk 0:02:31]}  Bg4 {[%clk 0:02:49]} 13. Nbd2 {[%clk 0:02:31]}  Nf5 {[%clk 0:02:38]} 14. Bg3 {[%clk 0:02:30]}  Nce7 {[%clk 0:02:36]} 15. Qb3 {[%clk 0:02:25]}  c6 {[%clk 0:02:35]} 16. a5 {[%clk 0:02:24]}  g6 {[%clk 0:02:11]} 17. Bxd6 {[%clk 0:02:19]}  Nxd6 {[%clk 0:02:10]} 18. h3 {[%clk 0:02:12]}  Bf5 {[%clk 0:02:03]} 19. Re3 {[%clk 0:02:07]}  Nec8 {[%clk 0:02:00]} 20. Rae1 {[%clk 0:02:06]}  Rxe3 {[%clk 0:01:59]} 21. Rxe3 {[%clk 0:02:06]}  Re8 {[%clk 0:02:00]} 22. Rxe8+ {[%clk 0:02:04]}  Qxe8 {[%clk 0:01:59]} 23. Qb4 {[%clk 0:01:59]}  Kg7 {[%clk 0:01:50]} 24. Nb3 {[%clk 0:01:58]}  Qe7 {[%clk 0:01:48]} 25. Nc5 {[%clk 0:01:56]}  b6 {[%clk 0:01:44]} 26. Na6 {[%clk 0:01:51]}  Nb7 {[%clk 0:01:34]} 27. axb6 {[%clk 0:01:39]}  axb6 {[%clk 0:01:30]} 28. Qb3 {[%clk 0:01:29]}  Nbd6 {[%clk 0:01:07]} 29. Nb4 {[%clk 0:01:26]}  Bd7 {[%clk 0:01:04]} 30. Qa3 {[%clk 0:01:22]}  Ne4 {[%clk 0:00:56]} 31. Qa8 {[%clk 0:01:18]}  Qd6 {[%clk 0:00:49]} 32. Ba6 {[%clk 0:01:16]}  Ne7 {[%clk 0:00:41]} 33. Qd8 {[%clk 0:01:13]}  c5 {[%clk 0:00:33]} 34. Nc2 {[%clk 0:01:05]}  Bf5 {[%clk 0:00:27]} 35. Qxd6 {[%clk 0:00:56]}  Nxd6 {[%clk 0:00:28]} 36. Ne3 {[%clk 0:00:55]}  Be4 {[%clk 0:00:28]} 37. Nd2 {[%clk 0:00:54]}  cxd4 {[%clk 0:00:27]} 38. cxd4 {[%clk 0:00:53]}  Nef5 {[%clk 0:00:27]} 39. Nxe4 {[%clk 0:00:32]}  dxe4 {[%clk 0:00:21]} 40. Nc2 {[%clk 0:00:32]}  Kf7 {[%clk 0:00:19]} 41. Kf1 {[%clk 0:00:32]}  Ke6 {[%clk 0:00:20]} 42. g4 {[%clk 0:00:29]}  Ne7 {[%clk 0:00:19]} 43. Ne3 {[%clk 0:00:28]}  Nd5 {[%clk 0:00:17]} 44. b3 {[%clk 0:00:23]}  f5 {[%clk 0:00:15]} 45. gxf5+ {[%clk 0:00:20]}  gxf5 {[%clk 0:00:16]} 46. Bc4 {[%clk 0:00:19]}  Nxc4 {[%clk 0:00:15]} 47. bxc4 {[%clk 0:00:18]}  Nb4 {[%clk 0:00:09]} 48. Ke2 {[%clk 0:00:15]}  f4 {[%clk 0:00:08]} 49. Ng4 {[%clk 0:00:13]}  Nc2 {[%clk 0:00:07]} 50. d5+ {[%clk 0:00:13]}  Kf5 {[%clk 0:00:08]} 51. Kd2 {[%clk 0:00:13]}  Nd4 {[%clk 0:00:07]} 52. Kc3 {[%clk 0:00:13]}  Nf3 {[%clk 0:00:07]} 53. Kb4 {[%clk 0:00:12]}  h5 {[%clk 0:00:05]} 54. d6 {[%clk 0:00:10]}  hxg4 {[%clk 0:00:01]} 55. d7 {[%clk 0:00:10]}  Nd4 {[%clk 0:00:01]} 56. c5 {[%clk 0:00:07]}  bxc5+ {[%clk 0:00:01]} 57. Kc4 {[%clk 0:00:07]}  Ne6 {[%clk 0:00:00]} 58. Kd5 {[%clk 0:00:07]} 1-0


[Site "https://www.chess.com"]

[Event "Titled Tuesday Blitz July 11 Late 2023"]
[White "Buchenau, Frank"]
[Black "Vlassov, Nikolai"]
[WhiteFideId "4604350"]
[BlackFideId "4103360"]
[WhiteElo "2426"]
[BlackElo "2583"]
[Result "0-1"]
[Round "11"]
[TimeControl "180+2"]
[Date "2023.07.11"]
[WhiteClock "0:00:00"]
[BlackClock "0:00:07"]
[Board "41"]

1. e4 {[%clk 0:03:00]}  Nc6 {[%clk 0:02:59]} 2. Nf3 {[%clk 0:03:00]}  d5 {[%clk 0:02:58]} 3. exd5 {[%clk 0:03:00]}  Qxd5 {[%clk 0:02:58]} 4. Nc3 {[%clk 0:03:00]}  Qa5 {[%clk 0:02:58]} 5. Bb5 {[%clk 0:02:56]}  Bd7 {[%clk 0:02:58]} 6. O-O {[%clk 0:02:55]}  a6 {[%clk 0:02:58]} 7. Bxc6 {[%clk 0:02:54]}  Bxc6 {[%clk 0:02:59]} 8. Re1 {[%clk 0:02:53]}  O-O-O {[%clk 0:02:45]} 9. Ne5 {[%clk 0:02:51]}  Be8 {[%clk 0:02:43]} 10. Qf3 {[%clk 0:02:42]}  f6 {[%clk 0:02:38]} 11. Nc4 {[%clk 0:02:41]}  Qh5 {[%clk 0:02:29]} 12. Qe3 {[%clk 0:02:33]}  Kb8 {[%clk 0:02:23]} 13. d3 {[%clk 0:02:27]}  Nh6 {[%clk 0:02:21]} 14. Bd2 {[%clk 0:02:20]}  Nf5 {[%clk 0:02:07]} 15. Qe2 {[%clk 0:02:05]}  Qxe2 {[%clk 0:02:04]} 16. Nxe2 {[%clk 0:02:05]}  e5 {[%clk 0:01:57]} 17. Ne3 {[%clk 0:01:52]}  Nh4 {[%clk 0:01:45]} 18. f4 {[%clk 0:01:44]}  e4 {[%clk 0:01:07]} 19. d4 {[%clk 0:01:35]}  Bf7 {[%clk 0:00:58]} 20. c4 {[%clk 0:01:28]}  f5 {[%clk 0:00:43]} 21. d5 {[%clk 0:01:23]}  Be7 {[%clk 0:00:29]} 22. Bc3 {[%clk 0:01:21]}  Rhg8 {[%clk 0:00:28]} 23. Rf1 {[%clk 0:01:10]}  c6 {[%clk 0:00:19]} 24. Nd4 {[%clk 0:01:06]}  cxd5 {[%clk 0:00:17]} 25. cxd5 {[%clk 0:00:53]}  Bc5 {[%clk 0:00:16]} 26. Rad1 {[%clk 0:00:45]}  Bxd5 {[%clk 0:00:16]} 27. Kh1 {[%clk 0:00:34]}  Bxa2 {[%clk 0:00:15]} 28. Ndxf5 {[%clk 0:00:28]}  Nxf5 {[%clk 0:00:14]} 29. Nxf5 {[%clk 0:00:28]}  g6 {[%clk 0:00:12]} 30. Be5+ {[%clk 0:00:24]}  Ka7 {[%clk 0:00:12]} 31. Nd6 {[%clk 0:00:21]}  e3 {[%clk 0:00:11]} 32. Rfe1 {[%clk 0:00:20]}  Bb3 {[%clk 0:00:10]} 33. Rc1 {[%clk 0:00:19]}  Bb4 {[%clk 0:00:10]} 34. Rxe3 {[%clk 0:00:18]}  Bd2 {[%clk 0:00:09]} 35. Rxb3 {[%clk 0:00:17]}  Bxc1 {[%clk 0:00:10]} 36. Rxb7+ {[%clk 0:00:17]}  Ka8 {[%clk 0:00:10]} 37. Rb6 {[%clk 0:00:16]}  Rd7 {[%clk 0:00:08]} 38. Rxa6+ {[%clk 0:00:13]}  Ra7 {[%clk 0:00:09]} 39. Rc6 {[%clk 0:00:14]}  Ra1 {[%clk 0:00:08]} 40. Bd4 {[%clk 0:00:00]}  Be3+ {[%clk 0:00:07]} 0-1


[Site "https://www.chess.com"]

[Event "Titled Tuesday Blitz July 11 Late 2023"]
[White "Deng, Henry"]
[Black "Zavgorodniy, Sergiy"]
[WhiteFideId "30965454"]
[BlackFideId "14110148"]
[WhiteElo "2522"]
[BlackElo "2589"]
[Result "0-1"]
[Round "11"]
[TimeControl "180+2"]
[Date "2023.07.11"]
[WhiteClock "0:00:38"]
[BlackClock "0:01:34"]
[Board "44"]

1. e4 {[%clk 0:03:00]}  c6 {[%clk 0:02:57]} 2. d4 {[%clk 0:02:59]}  d5 {[%clk 0:02:58]} 3. Nd2 {[%clk 0:02:57]}  dxe4 {[%clk 0:02:58]} 4. Nxe4 {[%clk 0:02:58]}  Bf5 {[%clk 0:02:57]} 5. Ng3 {[%clk 0:02:58]}  Bg6 {[%clk 0:02:57]} 6. h4 {[%clk 0:02:56]}  h6 {[%clk 0:02:58]} 7. Nf3 {[%clk 0:02:56]}  Nd7 {[%clk 0:02:58]} 8. h5 {[%clk 0:02:57]}  Bh7 {[%clk 0:02:58]} 9. Bd3 {[%clk 0:02:57]}  Bxd3 {[%clk 0:02:58]} 10. Qxd3 {[%clk 0:02:58]}  e6 {[%clk 0:02:59]} 11. c4 {[%clk 0:02:58]}  Ngf6 {[%clk 0:03:00]} 12. Ne4 {[%clk 0:02:58]}  Nxe4 {[%clk 0:03:00]} 13. Qxe4 {[%clk 0:02:59]}  Bb4+ {[%clk 0:03:00]} 14. Bd2 {[%clk 0:02:59]}  Bxd2+ {[%clk 0:02:59]} 15. Nxd2 {[%clk 0:02:57]}  Nf6 {[%clk 0:03:00]} 16. Qe3 {[%clk 0:02:54]}  O-O {[%clk 0:03:00]} 17. O-O-O {[%clk 0:02:53]}  b5 {[%clk 0:03:00]} 18. Kb1 {[%clk 0:02:46]}  bxc4 {[%clk 0:02:59]} 19. Nxc4 {[%clk 0:02:46]}  Nd5 {[%clk 0:02:59]} 20. Qd2 {[%clk 0:02:43]}  Rb8 {[%clk 0:02:59]} 21. Ne5 {[%clk 0:02:42]}  Qd6 {[%clk 0:02:55]} 22. Rc1 {[%clk 0:02:40]}  Rfc8 {[%clk 0:02:55]} 23. Rc5 {[%clk 0:02:39]}  Rb6 {[%clk 0:02:52]} 24. Nc4 {[%clk 0:02:39]}  Qe7 {[%clk 0:02:39]} 25. Nxb6 {[%clk 0:02:38]}  axb6 {[%clk 0:02:39]} 26. Rc2 {[%clk 0:02:38]}  Qd6 {[%clk 0:02:25]} 27. Rhc1 {[%clk 0:02:32]}  Ne7 {[%clk 0:02:25]} 28. g4 {[%clk 0:02:25]}  Rd8 {[%clk 0:02:23]} 29. Rd1 {[%clk 0:02:03]}  Qd5 {[%clk 0:02:18]} 30. Qb4 {[%clk 0:01:58]}  Rd7 {[%clk 0:02:15]} 31. Qxb6 {[%clk 0:01:58]}  Qf3 {[%clk 0:02:15]} 32. Rdc1 {[%clk 0:01:46]}  Qxg4 {[%clk 0:02:15]} 33. Rc4 {[%clk 0:01:41]}  Qxh5 {[%clk 0:02:12]} 34. a4 {[%clk 0:01:41]}  Qf5+ {[%clk 0:02:08]} 35. Ka1 {[%clk 0:01:40]}  Qxf2 {[%clk 0:02:07]} 36. a5 {[%clk 0:01:39]}  Nd5 {[%clk 0:02:04]} 37. Qb8+ {[%clk 0:01:38]}  Kh7 {[%clk 0:02:04]} 38. a6 {[%clk 0:01:38]}  Qd2 {[%clk 0:01:57]} 39. R4c2 {[%clk 0:01:04]}  Qa5+ {[%clk 0:01:55]} 40. Kb1 {[%clk 0:01:04]}  Nb4 {[%clk 0:01:48]} 41. Rd1 {[%clk 0:01:01]}  Qa2+ {[%clk 0:01:42]} 42. Kc1 {[%clk 0:01:01]}  Qa1+ {[%clk 0:01:41]} 43. Kd2 {[%clk 0:01:01]}  Rxd4+ {[%clk 0:01:41]} 44. Kc3 {[%clk 0:00:54]}  Qxd1 {[%clk 0:01:37]} 45. Qxb4 {[%clk 0:00:38]}  Qd3# {[%clk 0:01:34]} 0-1


[Site "https://www.chess.com"]

[Event "Titled Tuesday Blitz July 11 Late 2023"]
[White "JERO-8914"]
[Black "Bruedigam, Martin"]
[BlackFideId "24608033"]
[WhiteElo "2487"]
[BlackElo "2549"]
[Result "0-1"]
[Round "11"]
[TimeControl "180+2"]
[Date "2023.07.11"]
[WhiteClock "0:00:53"]
[BlackClock "0:00:41"]
[Board "47"]

1. c4 {[%clk 0:02:59]}  g6 {[%clk 0:02:57]} 2. Nc3 {[%clk 0:02:59]}  Bg7 {[%clk 0:02:57]} 3. d4 {[%clk 0:03:00]}  Nf6 {[%clk 0:02:55]} 4. e4 {[%clk 0:03:00]}  d6 {[%clk 0:02:56]} 5. Be2 {[%clk 0:03:01]}  O-O {[%clk 0:02:56]} 6. Nf3 {[%clk 0:03:01]}  e5 {[%clk 0:02:56]} 7. d5 {[%clk 0:03:01]}  a5 {[%clk 0:02:55]} 8. Be3 {[%clk 0:03:00]}  Na6 {[%clk 0:02:55]} 9. Nd2 {[%clk 0:03:00]}  Nd7 {[%clk 0:02:54]} 10. g4 {[%clk 0:03:01]}  Bf6 {[%clk 0:02:47]} 11. h4 {[%clk 0:02:58]}  Bxh4 {[%clk 0:02:45]} 12. Nf3 {[%clk 0:02:46]}  Bf6 {[%clk 0:02:45]} 13. Qd2 {[%clk 0:02:42]}  Nac5 {[%clk 0:02:37]} 14. O-O-O {[%clk 0:02:41]}  c6 {[%clk 0:02:37]} 15. Rh2 {[%clk 0:02:36]}  Re8 {[%clk 0:02:37]} 16. Rdh1 {[%clk 0:02:36]}  Nf8 {[%clk 0:02:37]} 17. Bh6 {[%clk 0:02:32]}  Bxg4 {[%clk 0:02:31]} 18. Bxf8 {[%clk 0:02:30]}  Kxf8 {[%clk 0:02:22]} 19. Rxh7 {[%clk 0:02:19]}  Ke7 {[%clk 0:01:52]} 20. Ng5 {[%clk 0:02:06]}  Rf8 {[%clk 0:01:48]} 21. Bxg4 {[%clk 0:02:04]}  Ke8 {[%clk 0:01:42]} 22. Nf3 {[%clk 0:01:56]}  a4 {[%clk 0:01:40]} 23. Rd1 {[%clk 0:01:43]}  Be7 {[%clk 0:01:31]} 24. Kc2 {[%clk 0:01:38]}  Qb6 {[%clk 0:01:30]} 25. dxc6 {[%clk 0:01:15]}  bxc6 {[%clk 0:01:31]} 26. Nxe5 {[%clk 0:01:00]}  Rb8 {[%clk 0:01:13]} 27. Kc1 {[%clk 0:00:53]}  Bg5 {[%clk 0:00:41]} 0-1


[Site "https://www.chess.com"]

[Event "Titled Tuesday Blitz July 11 Late 2023"]
[White "GAO"]
[Black "Rottenwohrer Suarez, Juan"]
[BlackFideId "32068182"]
[WhiteElo "2414"]
[BlackElo "2546"]
[Result "0-1"]
[Round "11"]
[TimeControl "180+2"]
[Date "2023.07.11"]
[WhiteClock "0:02:10"]
[BlackClock "0:01:35"]
[Board "49"]

1. e4 {[%clk 0:03:00]}  c5 {[%clk 0:02:55]} 2. Nf3 {[%clk 0:03:00]}  g6 {[%clk 0:02:54]} 3. d4 {[%clk 0:02:58]}  cxd4 {[%clk 0:02:54]} 4. Nxd4 {[%clk 0:02:58]}  Nc6 {[%clk 0:02:55]} 5. c4 {[%clk 0:02:58]}  Nf6 {[%clk 0:02:55]} 6. Nc3 {[%clk 0:02:57]}  d6 {[%clk 0:02:56]} 7. f3 {[%clk 0:02:53]}  Bg7 {[%clk 0:02:55]} 8. Be3 {[%clk 0:02:53]}  O-O {[%clk 0:02:56]} 9. Be2 {[%clk 0:02:53]}  Nh5 {[%clk 0:02:54]} 10. O-O {[%clk 0:02:50]}  Nf4 {[%clk 0:02:53]} 11. Nxc6 {[%clk 0:02:40]}  Nxe2+ {[%clk 0:02:49]} 12. Qxe2 {[%clk 0:02:41]}  bxc6 {[%clk 0:02:50]} 13. Rfd1 {[%clk 0:02:41]}  Qa5 {[%clk 0:02:41]} 14. Rac1 {[%clk 0:02:40]}  Ba6 {[%clk 0:02:04]} 15. Bd4 {[%clk 0:02:37]}  Bxd4+ {[%clk 0:01:58]} 16. Rxd4 {[%clk 0:02:38]}  Qc5 {[%clk 0:01:58]} 17. Qd3 {[%clk 0:02:28]}  e5 {[%clk 0:01:55]} 18. Nb5 {[%clk 0:02:14]}  cxb5 {[%clk 0:01:35]} 19. cxb5 {[%clk 0:02:10]}  Qxc1+ {[%clk 0:01:35]} 0-1


[Site "https://www.chess.com"]

[Event "Titled Tuesday Blitz July 11 Late 2023"]
[White "MFatigue"]
[Black "SicilianPanzer"]
[WhiteElo "2543"]
[BlackElo "2302"]
[Result "1-0"]
[Round "11"]
[TimeControl "180+2"]
[Date "2023.07.11"]
[WhiteClock "0:00:24"]
[BlackClock "0:00:00"]
[Board "50"]

1. e4 {[%clk 0:03:00]}  e6 {[%clk 0:02:58]} 2. d4 {[%clk 0:03:00]}  d5 {[%clk 0:02:58]} 3. Nc3 {[%clk 0:03:01]}  Bb4 {[%clk 0:02:58]} 4. e5 {[%clk 0:03:00]}  Ne7 {[%clk 0:02:57]} 5. a3 {[%clk 0:02:59]}  Bxc3+ {[%clk 0:02:57]} 6. bxc3 {[%clk 0:03:00]}  b6 {[%clk 0:02:57]} 7. Qg4 {[%clk 0:02:57]}  Ng6 {[%clk 0:02:55]} 8. h4 {[%clk 0:02:56]}  h5 {[%clk 0:02:55]} 9. Qg3 {[%clk 0:02:57]}  Ba6 {[%clk 0:02:54]} 10. Ne2 {[%clk 0:02:51]}  c5 {[%clk 0:02:39]} 11. Nf4 {[%clk 0:02:46]}  Nxf4 {[%clk 0:02:38]} 12. Bxf4 {[%clk 0:02:29]}  g6 {[%clk 0:02:26]} 13. Bg5 {[%clk 0:02:20]}  Qc7 {[%clk 0:02:23]} 14. Bxa6 {[%clk 0:02:16]}  Nxa6 {[%clk 0:02:22]} 15. O-O {[%clk 0:02:17]}  cxd4 {[%clk 0:02:10]} 16. cxd4 {[%clk 0:02:18]}  Kd7 {[%clk 0:02:08]} 17. Rac1 {[%clk 0:02:04]}  Qc4 {[%clk 0:01:54]} 18. Qf4 {[%clk 0:02:02]}  Rh7 {[%clk 0:01:26]} 19. Qf6 {[%clk 0:01:58]}  Re8 {[%clk 0:01:22]} 20. c3 {[%clk 0:01:58]}  Nb8 {[%clk 0:01:19]} 21. a4 {[%clk 0:01:47]}  Kc7 {[%clk 0:00:53]} 22. Rb1 {[%clk 0:01:32]}  Nd7 {[%clk 0:00:50]} 23. Qf3 {[%clk 0:01:32]}  Rb8 {[%clk 0:00:35]} 24. Rb4 {[%clk 0:01:23]}  Qc6 {[%clk 0:00:35]} 25. Rc1 {[%clk 0:01:21]}  a5 {[%clk 0:00:33]} 26. Rb2 {[%clk 0:01:00]}  Qxa4 {[%clk 0:00:23]} 27. Be7 {[%clk 0:00:57]}  Rb7 {[%clk 0:00:19]} 28. Bd6+ {[%clk 0:00:46]}  Kd8 {[%clk 0:00:17]} 29. Qe3 {[%clk 0:00:42]}  Nb8 {[%clk 0:00:14]} 30. Qg5+ {[%clk 0:00:41]}  Ke8 {[%clk 0:00:13]} 31. Rxb6 {[%clk 0:00:36]}  Qd7 {[%clk 0:00:09]} 32. Rcb1 {[%clk 0:00:31]}  Rxb6 {[%clk 0:00:04]} 33. Rxb6 {[%clk 0:00:32]}  Nc6 {[%clk 0:00:03]} 34. Rxc6 {[%clk 0:00:32]}  f6 {[%clk 0:00:00]} 35. Qxg6+ {[%clk 0:00:24]} 1-0


[Site "https://www.chess.com"]

[Event "Titled Tuesday Blitz July 11 Late 2023"]
[White "Sala, Giulia"]
[Black "Janaszak, Dawid"]
[WhiteFideId "2840451"]
[BlackFideId "1119206"]
[WhiteElo "2286"]
[BlackElo "2535"]
[Result "0-1"]
[Round "11"]
[TimeControl "180+2"]
[Date "2023.07.11"]
[WhiteClock "0:02:09"]
[BlackClock "0:01:43"]
[Board "52"]

1. d4 {[%clk 0:03:00]}  Nf6 {[%clk 0:02:54]} 2. Bf4 {[%clk 0:03:00]}  Nh5 {[%clk 0:02:51]} 3. Bd2 {[%clk 0:03:00]}  g6 {[%clk 0:02:51]} 4. e4 {[%clk 0:02:58]}  Bg7 {[%clk 0:02:51]} 5. c3 {[%clk 0:02:59]}  d6 {[%clk 0:02:48]} 6. Bd3 {[%clk 0:03:00]}  c5 {[%clk 0:02:48]} 7. Nf3 {[%clk 0:02:59]}  Bg4 {[%clk 0:02:46]} 8. h3 {[%clk 0:02:59]}  Bxf3 {[%clk 0:02:46]} 9. Qxf3 {[%clk 0:02:58]}  cxd4 {[%clk 0:02:47]} 10. O-O {[%clk 0:02:57]}  Nc6 {[%clk 0:02:46]} 11. cxd4 {[%clk 0:02:50]}  Nxd4 {[%clk 0:02:44]} 12. Qd1 {[%clk 0:02:50]}  O-O {[%clk 0:02:40]} 13. Nc3 {[%clk 0:02:50]}  Nc6 {[%clk 0:02:36]} 14. Rc1 {[%clk 0:02:41]}  Rc8 {[%clk 0:02:34]} 15. f4 {[%clk 0:02:37]}  Qb6+ {[%clk 0:02:23]} 16. Kh2 {[%clk 0:02:35]}  Qxb2 {[%clk 0:02:23]} 17. Nd5 {[%clk 0:02:32]}  e6 {[%clk 0:02:05]} 18. Rxc6 {[%clk 0:02:29]}  Rxc6 {[%clk 0:01:56]} 19. Ne7+ {[%clk 0:02:30]}  Kh8 {[%clk 0:01:56]} 20. Nxc6 {[%clk 0:02:30]}  bxc6 {[%clk 0:01:57]} 21. f5 {[%clk 0:02:29]}  Be5+ {[%clk 0:01:55]} 22. Kg1 {[%clk 0:02:25]}  Qd4+ {[%clk 0:01:52]} 23. Rf2 {[%clk 0:02:12]}  Qxd3 {[%clk 0:01:51]} 24. f6 {[%clk 0:02:10]}  Bd4 {[%clk 0:01:45]} 25. Bh6 {[%clk 0:02:09]}  Qxd1+ {[%clk 0:01:44]} 26. Kh2 {[%clk 0:02:09]}  Bxf2 {[%clk 0:01:43]} 27. Bg7+ {[%clk 0:02:09]}  Kg8 {[%clk 0:01:43]} 0-1


[Site "https://www.chess.com"]

[Event "Titled Tuesday Blitz July 11 Late 2023"]
[White "Milovic, Aleksandra"]
[Black "Salazar Farias, Luis German"]
[WhiteFideId "933988"]
[BlackFideId "3902170"]
[WhiteElo "2106"]
[BlackElo "2535"]
[Result "1/2-1/2"]
[Round "11"]
[TimeControl "180+2"]
[Date "2023.07.11"]
[WhiteClock "0:00:46"]
[BlackClock "0:01:10"]
[Board "53"]

1. e4 {[%clk 0:02:32]}  c6 {[%clk 0:02:59]} 2. d4 {[%clk 0:02:28]}  d5 {[%clk 0:02:59]} 3. Nc3 {[%clk 0:02:26]}  dxe4 {[%clk 0:02:59]} 4. Nxe4 {[%clk 0:02:25]}  Nf6 {[%clk 0:02:59]} 5. Nxf6+ {[%clk 0:02:18]}  exf6 {[%clk 0:03:00]} 6. c3 {[%clk 0:02:18]}  Bd6 {[%clk 0:02:59]} 7. Bd3 {[%clk 0:02:18]}  O-O {[%clk 0:02:59]} 8. Ne2 {[%clk 0:02:19]}  Re8 {[%clk 0:02:56]} 9. O-O {[%clk 0:02:17]}  Nd7 {[%clk 0:02:54]} 10. Qc2 {[%clk 0:02:17]}  Nf8 {[%clk 0:02:50]} 11. Be3 {[%clk 0:02:02]}  g6 {[%clk 0:02:34]} 12. Rfe1 {[%clk 0:01:53]}  f5 {[%clk 0:02:31]} 13. Qd2 {[%clk 0:01:45]}  Qh4 {[%clk 0:01:50]} 14. g3 {[%clk 0:01:32]}  Qh3 {[%clk 0:01:40]} 15. Nf4 {[%clk 0:01:24]}  Bxf4 {[%clk 0:01:33]} 16. Bxf4 {[%clk 0:01:25]}  Be6 {[%clk 0:01:14]} 17. Bf1 {[%clk 0:01:11]}  Qh5 {[%clk 0:01:14]} 18. Be2 {[%clk 0:00:46]}  Qh3 {[%clk 0:01:13]} 19. Bf1 {[%clk 0:00:46]}  Qh5 {[%clk 0:01:10]} 20. Be2 {[%clk 0:00:46]}  Qh3 {[%clk 0:01:10]} 21. Bf1 {[%clk 0:00:46]} 1/2-1/2


[Site "https://www.chess.com"]